bitfinex/quotes_BTCUSD_20220111
["timestamp","ask_amount","ask_price","bid_price","bid_amount"]
[1641894286524,0.422,42099.0,42093.0,0.166345]
[1641894286525,0.00024649,42098.0,42093.0,0.166345]
[1641894286723,0.422,42099.0,42097.0,0.45592575]
[1641894286923,0.422,42099.0,42098.0,0.412281]
[1641894287124,0.422,42099.0,42098.0,0.462281]
[1641894287323,0.0075468,42101.0,42099.0,0.424039]
[1641894287523,0.001,42103.0,42100.0,0.412261]
[1641894287724,0.001,42103.0,42101.0,0.088536]
[1641894287976,0.001,42103.0,42102.0,0.0476]
[1641894288173,0.001,42103.0,42101.0,0.059356]
[1641894288174,0.374076,42103.0,42101.0,0.059356]
[1641894288378,0.374076,42103.0,42101.0,0.132733]
[1641894288379,0.001,42103.0,42101.0,0.132733]
[1641894288576,0.35219658,42103.0,42101.0,0.132733]
[1641894288776,1.18607859,42102.0,42101.0,0.132733]
[1641894288974,1.18607859,42102.0,42101.0,0.182733]
[1641894289174,0.78887475,42102.0,42101.0,0.182733]
[1641894289377,0.001,42103.0,42101.0,0.182733]
[1641894289675,0.001,42103.0,42101.0,0.168733]
[1641894289876,0.001,42103.0,42101.0,0.109356]
[1641894290076,0.001,42103.0,42098.0,0.35282385]
[1641894290077,0.373076,42102.0,42098.0,0.35282385]
[1641894290278,0.44480384,42101.0,42098.0,0.24]
[1641894290676,0.0476,42101.0,42098.0,0.24]
[1641894291075,0.0476,42101.0,42098.0,0.40625404]
[1641894291276,0.0476,42101.0,42099.0,0.05344138]
[1641894291722,0.00085471,42102.0,42099.0,0.10344138]
[1641894292124,0.001,42103.0,42099.0,0.10344138]
[1641894292322,0.0018547,42103.0,42099.0,0.10344138]
[1641894292522,0.0018547,42103.0,42100.0,0.11279976]
[1641894292924,0.0018547,42103.0,42101.0,0.168735]
[1641894293122,0.0018547,42103.0,42101.0,0.218735]
[1641894293325,0.001,42103.0,42101.0,0.218735]
[1641894294424,0.001,42103.0,42101.0,0.228735]
[1641894295674,0.001,42103.0,42102.0,0.39511305]
[1641894295973,0.001,42103.0,42101.0,0.228735]
[1641894296374,0.001,42103.0,42102.0,0.012]
[1641894297675,0.374076,42103.0,42101.0,0.218735]
[1641894297876,0.374076,42103.0,42101.0,0.168735]
[1641894297877,0.001,42103.0,42101.0,0.168735]
[1641894298377,0.36329257,42102.0,42101.0,0.178735]
[1641894298576,0.36329257,42102.0,42101.0,0.128735]
[1641894298577,0.96695357,42102.0,42101.0,0.128735]
[1641894298779,1.01455357,42102.0,42101.0,0.128735]
[1641894298977,1.01455357,42102.0,42101.0,0.01]
[1641894299224,1.72079425,42102.0,42101.0,0.01]
[1641894299423,1.62079425,42102.0,42101.0,0.0001]
[1641894299623,1.39020925,42102.0,42101.0,0.0001]
[1641894299821,1.79379123,42102.0,42098.0,0.24]
[1641894300421,1.79379123,42102.0,42099.0,0.059384]
[1641894300422,0.70686557,42101.0,42099.0,0.059384]
[1641894300621,0.420676,42100.0,42098.0,0.29]
[1641894301220,0.420676,42100.0,42098.0,0.40877]
[1641894301822,0.420676,42100.0,42098.0,0.24]
[1641894302024,0.39809816,42099.0,42098.0,0.24]
[1641894302225,1.12579728,42099.0,42098.0,0.24]
[1641894302423,1.32579728,42099.0,42098.0,0.249]
[1641894302873,1.28519528,42099.0,42098.0,0.249]
[1641894303272,0.480074,42099.0,42098.0,0.299]
[1641894303574,0.0476,42099.0,42098.0,0.349]
[1641894303773,0.70076599,42102.0,42098.0,0.34]
[1641894303976,0.70076599,42102.0,42101.0,0.059373]
[1641894304172,1.42384199,42102.0,42099.0,0.059373]
[1641894304373,0.71198809,42101.0,42099.0,0.059373]
[1641894304573,1.41275408,42101.0,42099.0,0.059373]
[1641894304973,0.71198809,42101.0,42099.0,0.059373]
[1641894305875,0.0476,42100.0,42096.0,0.00086317]
[1641894306074,0.373076,42099.0,42096.0,0.00086317]
[1641894306273,0.0476,42098.0,42096.0,0.00086317]
[1641894306477,0.77108469,42097.0,42096.0,0.06025817]
[1641894306728,0.00123816,42096.0,42094.0,0.00053956]
[1641894306928,0.420676,42095.0,42094.0,0.00053956]
[1641894307130,0.82970742,42095.0,42094.0,0.00053956]
[1641894307329,1.04634066,42095.0,42094.0,0.00053956]
[1641894307529,1.31949608,42095.0,42094.0,0.00053956]
[1641894307730,1.31949608,42095.0,42087.0,0.05]
[1641894307932,1.31949608,42095.0,42092.0,0.00053961]
[1641894308132,0.91046466,42095.0,42092.0,0.00053961]
[1641894308332,0.34805623,42094.0,42092.0,0.00053961]
[1641894308532,1.020676,42093.0,42092.0,0.00353961]
[1641894308733,0.77162331,42093.0,42092.0,0.00353961]
[1641894308931,0.77162331,42093.0,42092.0,0.003]
[1641894309533,0.80855367,42093.0,42092.0,0.003]
[1641894309934,0.80855367,42093.0,42085.0,0.296967]
[1641894309935,0.90855367,42093.0,42084.0,0.05346186]
[1641894310135,0.90855367,42093.0,42077.0,0.237604]
[1641894310377,0.00125217,42090.0,42075.0,0.118815]
[1641894310577,0.0476,42089.0,42070.0,0.09410051]
[1641894310777,0.3900969,42088.0,42079.0,0.118801]
[1641894310977,0.4366025,42084.0,42079.0,0.118801]
[1641894311181,0.81756265,42083.0,42079.0,0.118801]
[1641894311379,0.86516265,42083.0,42074.0,0.00129399]
[1641894311576,0.86516265,42083.0,42081.0,0.178219]
[1641894311780,0.3900969,42082.0,42081.0,0.178219]
[1641894311977,0.8107359,42082.0,42081.0,0.178219]
[1641894312477,0.4446969,42082.0,42081.0,0.178219]
[1641894313079,0.0546,42082.0,42081.0,0.228219]
[1641894313577,0.2942,42092.0,42081.0,0.228219]
[1641894313778,0.0476,42090.0,42084.0,0.118792]
[1641894313977,0.373039,42089.0,42079.0,0.32456261]
[1641894314226,0.0476,42088.0,42086.0,0.160383]
[1641894314430,0.373039,42087.0,42086.0,0.219785]
[1641894314624,0.420639,42087.0,42086.0,0.219785]
[1641894314824,0.43910418,42087.0,42086.0,0.160383]
[1641894315026,0.45756936,42087.0,42086.0,0.160383]
[1641894316027,0.03693036,42087.0,42086.0,0.33044306]
[1641894316626,0.88181936,42091.0,42086.0,0.33044306]
[1641894316826,0.88181936,42091.0,42087.0,0.059385]
[1641894317031,0.25465827,42094.0,42088.0,0.24595658]
[1641894317327,0.34128687,42096.0,42090.0,0.118773]
[1641894317527,0.373039,42095.0,42088.0,0.00053542]
[1641894318175,0.28275467,42098.0,42088.0,0.00053542]
[1641894318374,0.28275467,42098.0,42088.0,0.1608638]
[1641894318576,0.007,42095.0,42094.0,0.31972886]
[1641894318974,0.00085471,42098.0,42094.0,0.36972886]
[1641894319174,0.00085471,42098.0,42095.0,0.053444]
[1641894319580,0.00085471,42098.0,42096.0,0.059382]
[1641894319776,0.38496285,42101.0,42096.0,0.059382]
[1641894319975,0.38496285,42101.0,42096.0,0.109382]
[1641894319976,0.00085474,42099.0,42096.0,0.109382]
[1641894320577,0.00985474,42099.0,42097.0,0.059384]
[1641894320775,0.00985474,42099.0,42098.0,0.059382]
[1641894320975,0.009,42099.0,42098.0,0.059382]
[1641894321175,0.009,42099.0,42098.0,0.109382]
[1641894321633,0.00085472,42100.0,42098.0,0.109382]
[1641894322228,0.24909716,42101.0,42099.0,0.16625839]
[1641894322425,0.00085472,42101.0,42099.0,0.10687939]
[1641894322624,0.013,42100.0,42099.0,0.10687939]
[1641894323624,0.013,42100.0,42099.0,0.15687939]
[1641894323825,0.00085471,42102.0,42099.0,0.19844539]
[1641894324027,0.00085471,42102.0,42100.0,0.11281954]
[1641894324427,0.32330033,42102.0,42100.0,0.11281954]
[1641894324731,0.05,42102.0,42100.0,0.11281954]
[1641894325127,0.05,42102.0,42100.0,0.16281954]
[1641894325373,0.30119753,42101.0,42100.0,0.05344054]
[1641894325573,0.30119753,42101.0,42100.0,0.10344054]
[1641894325874,0.30119753,42101.0,42100.0,0.05344054]
[1641894326074,0.67423653,42101.0,42100.0,0.05344054]
[1641894326274,0.98134186,42101.0,42100.0,0.05344054]
[1641894326473,1.01734186,42101.0,42100.0,0.05344054]
[1641894326675,0.71023653,42101.0,42100.0,0.05344054]
[1641894327775,0.67423653,42101.0,42100.0,0.05344054]
[1641894327974,0.67423653,42101.0,42100.0,0.29344054]
[1641894328577,0.69723653,42101.0,42100.0,0.29344054]
[1641894328975,0.396039,42101.0,42100.0,0.29344054]
[1641894329226,0.69784655,42101.0,42100.0,0.29344054]
[1641894329626,0.51553655,42101.0,42100.0,0.29344054]
[1641894329823,0.49253655,42101.0,42100.0,0.29344054]
[1641894330724,0.50853655,42101.0,42100.0,0.29344054]
[1641894330927,1.00853655,42101.0,42100.0,0.29344054]
[1641894331328,0.50853655,42101.0,42100.0,0.29344054]
[1641894331728,0.49253655,42101.0,42100.0,0.29344054]
[1641894331930,0.94253655,42101.0,42100.0,0.29344054]
[1641894332128,0.49253655,42101.0,42100.0,0.29344054]
[1641894332532,0.50853655,42101.0,42100.0,0.29344054]
[1641894332974,1.00853655,42101.0,42100.0,0.29344054]
[1641894333173,0.516,42101.0,42100.0,0.29344054]
[1641894333373,0.889017,42101.0,42100.0,0.29344054]
[1641894333876,0.823786,42101.0,42100.0,0.29344054]
[1641894334175,0.373017,42101.0,42100.0,0.23987634]
[1641894334574,0.392017,42101.0,42100.0,0.23987634]
[1641894335377,0.9194737,42101.0,42100.0,0.23987634]
[1641894335777,0.9004737,42101.0,42100.0,0.23987634]
[1641894336631,0.9124737,42101.0,42100.0,0.23987634]
[1641894336826,1.1124737,42101.0,42100.0,0.23987634]
[1641894337028,0.29,42100.0,42091.0,0.16034]
[1641894337227,0.059399,42097.0,42091.0,0.16034]
[1641894337527,0.48101478,42096.0,42084.0,0.14255]
[1641894337729,0.48101478,42096.0,42089.0,0.059405]
[1641894337927,0.25007023,42090.0,42089.0,0.059405]
[1641894338128,0.95290824,42090.0,42089.0,0.059405]
[1641894338429,0.95290824,42090.0,42088.0,0.00041742]
[1641894338629,1.61017553,42089.0,42088.0,0.00041742]
[1641894339030,1.61017553,42089.0,42080.0,0.035645]
[1641894339229,1.0752889,42087.0,42086.0,0.0004202]
[1641894339429,1.4483059,42087.0,42086.0,0.0004202]
[1641894340029,1.4483059,42087.0,42086.0,0.0717112]
[1641894340232,1.4483059,42087.0,42086.0,0.071291]
[1641894340475,1.46214557,42087.0,42086.0,0.121291]
[1641894342081,0.379017,42087.0,42086.0,0.121291]
[1641894342480,0.006,42087.0,42086.0,0.121291]
[1641894342680,0.008,42087.0,42086.0,0.121291]
[1641894343081,0.381017,42087.0,42086.0,0.121291]
[1641894344622,0.387017,42087.0,42086.0,0.121291]
[1641894345226,1.20289691,42087.0,42086.0,0.121291]
[1641894345428,0.8400657,42087.0,42086.0,0.121291]
[1641894346229,0.9400657,42087.0,42086.0,0.071291]
[1641894346429,1.29707555,42087.0,42086.0,0.071291]
[1641894346630,1.29907555,42087.0,42086.0,0.071291]
[1641894347129,1.19907555,42087.0,42086.0,0.071291]
[1641894347530,1.29907555,42087.0,42086.0,0.071291]
[1641894347873,1.29107555,42087.0,42086.0,0.071291]
[1641894348275,1.29107555,42087.0,42086.0,0.311291]
[1641894348574,1.35067555,42087.0,42086.0,0.311291]
[1641894349377,1.35067555,42087.0,42086.0,0.071291]
[1641894349584,0.9856657,42087.0,42086.0,0.071291]
[1641894349976,0.96183113,42087.0,42086.0,0.071291]
[1641894350279,1.22218732,42087.0,42086.0,8.90676074]
[1641894350580,0.98800489,42087.0,42086.0,8.88176074]
[1641894351923,0.96100489,42087.0,42086.0,8.88176074]
[1641894352724,0.98800489,42087.0,42086.0,8.88176074]
[1641894352924,0.6276487,42087.0,42086.0,8.88176074]
[1641894354026,0.1,42087.0,42086.0,8.88176074]
[1641894354425,0.25592197,42090.0,42086.0,8.88176074]
[1641894355026,0.38811779,42087.0,42086.0,8.88176074]
[1641894355226,0.71889578,42087.0,42086.0,8.88176074]
[1641894355474,0.81889578,42087.0,42086.0,8.88176074]
[1641894356077,0.48811779,42087.0,42086.0,8.88176074]
[1641894356676,0.53211779,42087.0,42086.0,8.88176074]
[1641894357276,0.84361564,42087.0,42086.0,8.88176074]
[1641894357879,0.79961564,42087.0,42086.0,8.88176074]
[1641894358777,0.81861564,42087.0,42086.0,8.88176074]
[1641894359925,0.79961564,42087.0,42086.0,8.88176074]
[1641894360525,0.38811779,42087.0,42086.0,8.88176074]
[1641894360730,0.023,42087.0,42086.0,8.88176074]
[1641894362026,0.0190012,42090.0,42086.0,8.88176074]
[1641894362626,0.0470012,42090.0,42086.0,8.88176074]
[1641894363281,0.32659102,42088.0,42086.0,8.88218035]
[1641894363676,0.42659102,42088.0,42086.0,8.88218035]
[1641894364177,0.42659102,42088.0,42086.0,8.88176074]
[1641894364676,0.45859102,42088.0,42086.0,8.88176074]
[1641894366625,0.42659102,42088.0,42086.0,8.88176074]
[1641894366827,0.45559102,42088.0,42086.0,8.88176074]
[1641894367026,0.51500202,42088.0,42086.0,8.88176074]
[1641894367926,0.48600202,42088.0,42086.0,8.88176074]
[1641894368826,0.51000202,42088.0,42086.0,8.88176074]
[1641894370128,0.48600202,42088.0,42086.0,8.88176074]
[1641894370776,0.51000202,42088.0,42086.0,8.88176074]
[1641894372078,0.48600202,42088.0,42086.0,8.88176074]
[1641894372781,0.50900202,42088.0,42086.0,8.88176074]
[1641894373381,0.50900202,42088.0,42086.0,8.87601591]
[1641894374225,0.48600202,42088.0,42086.0,8.87601591]
[1641894374826,0.50900202,42088.0,42086.0,8.87601591]
[1641894375228,0.50900202,42088.0,42086.0,8.52125848]
[1641894375432,0.50900202,42088.0,42086.0,5.55241103]
[1641894375433,0.5735762,42087.0,42086.0,5.55241103]
[1641894375630,0.8400182,42087.0,42086.0,5.34224945]
[1641894375831,0.8400182,42087.0,42086.0,5.24234945]
[1641894376830,1.86173313,42087.0,42086.0,5.24234945]
[1641894377428,1.46315693,42087.0,42086.0,5.24234945]
[1641894377630,1.8045862,42087.0,42086.0,5.24234945]
[1641894378275,1.7045862,42087.0,42086.0,5.24234945]
[1641894378576,1.6925862,42087.0,42086.0,5.24234945]
[1641894378778,1.7055862,42087.0,42086.0,5.24234945]
[1641894378978,1.40255048,42087.0,42086.0,5.24234945]
[1641894379977,1.48955048,42087.0,42086.0,5.24234945]
[1641894380578,0.78287127,42087.0,42086.0,5.24234945]
[1641894380777,0.79487127,42087.0,42086.0,5.24234945]
[1641894381175,1.50155048,42087.0,42086.0,5.24234945]
[1641894381641,0.79487127,42087.0,42086.0,5.24234945]
[1641894382028,0.78287127,42087.0,42086.0,5.24234945]
[1641894382228,1.13287127,42087.0,42086.0,5.24234945]
[1641894382826,1.14587127,42087.0,42086.0,5.24234945]
[1641894384029,1.13287127,42087.0,42086.0,5.24234945]
[1641894384430,0.78287127,42087.0,42086.0,5.24234945]
[1641894384631,1.38857591,42087.0,42086.0,5.24234945]
[1641894384831,1.39857591,42087.0,42086.0,5.24234945]
[1641894385480,0.79287127,42087.0,42086.0,5.24234945]
[1641894385978,0.78287127,42087.0,42086.0,5.24234945]
[1641894386479,1.38856949,42087.0,42086.0,5.24234945]
[1641894386881,1.39956949,42087.0,42086.0,5.24234945]
[1641894388079,0.78287127,42087.0,42086.0,5.24234945]
[1641894388680,1.38857365,42087.0,42086.0,5.24234945]
[1641894388882,1.40057365,42087.0,42086.0,5.24234945]
[1641894389331,1.39557365,42087.0,42086.0,5.24234945]
[1641894390033,1.38357365,42087.0,42086.0,5.24234945]
[1641894390831,1.39457365,42087.0,42086.0,5.24234945]
[1641894392031,1.38357365,42087.0,42086.0,5.24234945]
[1641894392732,0.77787127,42087.0,42086.0,5.24234945]
[1641894392977,2.13422127,42087.0,42086.0,3.1023876]
[1641894393176,1.24430627,42087.0,42086.0,3.1023876]
[1641894393376,0.87122127,42087.0,42086.0,3.1023876]
[1641894393976,0.85922127,42087.0,42086.0,3.1023876]
[1641894394179,1.51620621,42087.0,42086.0,3.1023876]
[1641894394375,1.53998621,42087.0,42086.0,3.0973876]
[1641894394777,1.4490009,42087.0,42086.0,3.0973876]
[1641894395179,1.81102614,42087.0,42086.0,3.0973876]
[1641894395579,1.91201145,42087.0,42086.0,3.0973876]
[1641894396181,1.90201145,42087.0,42086.0,3.0973876]
[1641894396928,1.91301145,42087.0,42086.0,3.0973876]
[1641894397827,1.20633224,42087.0,42086.0,3.0973876]
[1641894398027,1.19533224,42087.0,42086.0,3.0973876]
[1641894398929,1.20633224,42087.0,42086.0,3.0973876]
[1641894399729,1.18807193,42087.0,42086.0,3.0973876]
[1641894400030,1.17707193,42087.0,42086.0,3.0973876]
[1641894400879,1.18807193,42087.0,42086.0,3.0973876]
[1641894402179,1.17707193,42087.0,42086.0,3.0973876]
[1641894402481,1.49750151,42087.0,42086.0,3.0973876]
[1641894402679,1.49750151,42087.0,42086.0,2.6219936]
[1641894402884,1.50850151,42087.0,42086.0,2.6219936]
[1641894403080,1.50850151,42087.0,42086.0,2.1466106]
[1641894403281,1.18807193,42087.0,42086.0,2.1466106]
[1641894403481,1.18807193,42087.0,42086.0,1.6712266]
[1641894404133,0.833307,42087.0,42086.0,1.6712266]
[1641894404534,1.1827191,42087.0,42086.0,1.6712266]
[1641894404734,1.21736943,42087.0,42086.0,1.6712266]
[1641894404933,0.87395733,42087.0,42086.0,1.6712266]
[1641894406132,0.86295733,42087.0,42086.0,1.6712266]
[1641894406935,0.87395733,42087.0,42086.0,1.6712266]
[1641894407737,1.22423136,42087.0,42086.0,1.6712266]
[1641894408781,2.47623136,42087.0,42086.0,0.7204106]
[1641894408980,2.48723136,42087.0,42084.0,0.00041964]
[1641894409180,0.99297878,42085.0,42084.0,0.00041964]
[1641894409380,1.04057878,42085.0,42084.0,0.00041964]
[1641894409580,1.16435878,42085.0,42084.0,0.00041964]
[1641894409781,1.07753704,42085.0,42075.0,0.30776031]
[1641894410083,0.25170335,42076.0,42075.0,0.30776031]
[1641894410283,0.25170335,42076.0,42070.0,0.15]
[1641894410482,0.118852,42074.0,42068.0,0.109424]
[1641894410686,0.059426,42074.0,42068.0,0.059424]
[1641894410882,0.059426,42074.0,42071.0,0.1]
[1641894411282,0.059426,42074.0,42073.0,0.3271142]
[1641894411729,0.11885,42074.0,42073.0,0.3271142]
[1641894412131,0.11885,42074.0,42071.0,0.1]
[1641894412329,0.11885,42074.0,42071.0,0.00041985]
[1641894412731,0.02378,42073.0,42071.0,0.00041985]
[1641894413132,0.02378,42073.0,42072.0,0.25191184]
[1641894413534,0.02378,42073.0,42072.0,0.62499684]
[1641894413935,0.02378,42073.0,42072.0,0.67499684]
[1641894414333,0.425419,42089.0,42072.0,1.1088174]
[1641894414535,0.009519,42089.0,42077.0,0.10129231]
[1641894414735,0.072398,42088.0,42077.0,0.15129231]
[1641894414935,0.072398,42088.0,42086.0,0.1]
[1641894414936,0.02,42088.0,42086.0,0.1]
[1641894415134,0.02,42088.0,42086.0,0.15]
[1641894415382,0.02,42088.0,42087.0,0.11284465]
[1641894415781,0.02,42088.0,42087.0,0.7704729]
[1641894416181,0.013,42088.0,42087.0,0.432477]
[1641894416382,0.013,42088.0,42087.0,0.059392]
[1641894416782,0.307154,42086.0,42085.0,0.0004196]
[1641894416983,0.307154,42086.0,42082.0,0.059404]
[1641894417184,0.307154,42086.0,42085.0,0.0004196]
[1641894417584,0.03069019,42086.0,42085.0,0.0004196]
[1641894417886,0.03784642,42086.0,42085.0,0.0004196]
[1641894418289,0.00715623,42086.0,42085.0,0.1]
[1641894418490,0.013,42088.0,42085.0,0.52433758]
[1641894418685,0.013,42088.0,42086.0,0.373085]
[1641894418885,0.013,42088.0,42086.0,0.05344563]
[1641894419140,0.013,42088.0,42087.0,0.059386]
[1641894419335,0.013,42088.0,42087.0,0.432471]
[1641894419535,0.013,42088.0,42087.0,0.482471]
[1641894419936,0.013,42088.0,42087.0,0.373085]
[1641894420139,0.013,42088.0,42086.0,0.24]
[1641894420938,0.013,42088.0,42086.0,0.262]
[1641894421337,0.013,42088.0,42086.0,0.321398]
[1641894421538,0.013,42088.0,42087.0,0.423085]
[1641894421738,0.013,42088.0,42087.0,0.373085]
[1641894422984,0.013,42088.0,42087.0,0.396085]
[1641894424284,0.013,42088.0,42087.0,0.423085]
[1641894424683,0.013,42088.0,42087.0,0.473085]
[1641894424884,0.013,42088.0,42087.0,0.496085]
[1641894426285,0.013,42088.0,42087.0,0.473085]
[1641894426930,0.013,42088.0,42087.0,0.446085]
[1641894427327,0.013,42088.0,42087.0,0.023]
[1641894428132,0.386085,42088.0,42087.0,0.023]
[1641894428331,0.013,42088.0,42086.0,0.24]
[1641894428530,0.013,42088.0,42086.0,0.299397]
[1641894428931,0.013,42088.0,42086.0,0.354397]
[1641894430132,0.013,42088.0,42086.0,0.299397]
[1641894430983,0.013,42088.0,42086.0,0.358397]
[1641894432286,0.013,42088.0,42086.0,0.299397]
[1641894432886,0.02583997,42087.0,42086.0,0.299397]
[1641894433087,0.02583997,42087.0,42086.0,0.355397]
[1641894434238,0.02583997,42087.0,42086.0,0.299397]
[1641894434935,0.02583997,42087.0,42086.0,0.356397]
[1641894436438,0.02583997,42087.0,42086.0,0.299397]
[1641894437035,0.02583997,42087.0,42086.0,0.361397]
[1641894438282,0.02583997,42087.0,42086.0,0.349397]
[1641894439082,0.02583997,42087.0,42086.0,0.412397]
[1641894439682,0.02583997,42087.0,42086.0,0.362397]
[1641894440084,0.02583997,42087.0,42086.0,0.303]
[1641894440483,0.02583997,42087.0,42086.0,0.24]
[1641894441085,0.02083997,42087.0,42086.0,0.3]
[1641894442433,0.02083997,42087.0,42086.0,0.24]
[1641894443032,0.02083997,42087.0,42086.0,0.303]
[1641894444333,0.02083997,42087.0,42086.0,0.24]
[1641894444334,0.28271784,42087.0,42086.0,0.24]
[1641894444936,0.28271784,42087.0,42086.0,0.303]
[1641894445681,0.02083997,42087.0,42086.0,0.303]
[1641894445883,0.02083997,42087.0,42086.0,0.30255]
[1641894446283,0.02083997,42087.0,42086.0,0.23955]
[1641894447081,0.02083997,42087.0,42086.0,0.30055]
[1641894448983,0.02083997,42087.0,42086.0,0.30455]
[1641894450234,0.02083997,42087.0,42086.0,0.23955]
[1641894451036,0.02083997,42087.0,42086.0,0.30355]
[1641894452235,0.02083997,42087.0,42086.0,0.23955]
[1641894453083,0.02083997,42087.0,42086.0,0.29955]
[1641894454283,0.02083997,42087.0,42086.0,0.23955]
[1641894455084,0.02083997,42087.0,42086.0,0.25855]
[1641894456183,0.02083997,42087.0,42086.0,0.23955]
[1641894457035,0.02083997,42087.0,42086.0,0.27155]
[1641894458337,0.02083997,42087.0,42086.0,0.23955]
[1641894459136,0.02083997,42087.0,42086.0,0.27455]
[1641894460386,0.02083997,42087.0,42086.0,0.23955]
[1641894460984,0.02083997,42087.0,42086.0,0.26955]
[1641894462997,0.02083997,42087.0,42086.0,0.27655]
[1641894464231,0.02083997,42087.0,42086.0,0.23955]
[1641894465132,0.02083997,42087.0,42086.0,0.27655]
[1641894466334,0.02083997,42087.0,42086.0,0.23955]
[1641894467135,0.02083997,42087.0,42086.0,0.26455]
[1641894468284,0.02083997,42087.0,42086.0,0.23955]
[1641894469084,0.02083997,42087.0,42086.0,0.27255]
[1641894470086,0.02083997,42087.0,42086.0,0.331949]
[1641894470285,0.02083997,42087.0,42086.0,0.298949]
[1641894470987,0.02083997,42087.0,42086.0,0.324949]
[1641894472237,0.02083997,42087.0,42086.0,0.298949]
[1641894473137,0.02083997,42087.0,42086.0,0.317949]
[1641894474441,0.02083997,42087.0,42086.0,0.298949]
[1641894475042,0.02083997,42087.0,42086.0,0.323949]
[1641894476282,0.02083997,42087.0,42086.0,0.298949]
[1641894477184,0.02083997,42087.0,42086.0,0.323949]
[1641894478284,0.02083997,42087.0,42086.0,0.298949]
[1641894479138,0.02083997,42087.0,42086.0,0.323949]
[1641894480239,0.02083997,42087.0,42086.0,0.298949]
[1641894481241,0.02083997,42087.0,42086.0,0.323949]
[1641894482544,0.02083997,42087.0,42086.0,0.298949]
[1641894483183,0.02083997,42087.0,42086.0,0.367949]
[1641894484284,0.02083997,42087.0,42086.0,0.298949]
[1641894484483,0.01583997,42087.0,42086.0,0.298949]
[1641894485084,0.01583997,42087.0,42086.0,0.317949]
[1641894486288,0.01583997,42087.0,42086.0,0.298949]
[1641894486486,0.01583997,42087.0,42086.0,0.58263727]
[1641894486934,0.01583997,42087.0,42086.0,0.52323827]
[1641894487132,0.01583997,42087.0,42086.0,0.54223827]
[1641894487533,0.01583997,42087.0,42086.0,0.96223827]
[1641894488134,0.01583997,42087.0,42086.0,0.67855]
[1641894488334,0.01583997,42087.0,42086.0,0.65955]
[1641894489135,0.01583997,42087.0,42086.0,0.67855]
[1641894489535,0.01583997,42087.0,42086.0,1.051635]
[1641894489935,0.01583997,42087.0,42086.0,1.101635]
[1641894490383,0.01583997,42087.0,42086.0,1.082635]
[1641894491184,0.01583997,42087.0,42086.0,1.107635]
[1641894492387,0.01583997,42087.0,42086.0,1.082635]
[1641894493084,0.01583997,42087.0,42086.0,1.106635]
[1641894493685,0.01583997,42087.0,42086.0,0.73355]
[1641894494338,0.01583997,42087.0,42086.0,0.70955]
[1641894495144,0.01583997,42087.0,42086.0,0.72955]
[1641894496041,0.01583997,42087.0,42086.0,0.254364]
[1641894496440,0.01583997,42087.0,42086.0,0.234364]
[1641894497240,0.01583997,42087.0,42086.0,0.251364]
[1641894497440,0.01583997,42087.0,42086.0,0.301364]
[1641894498299,0.01583997,42087.0,42086.0,0.251364]
[1641894498699,0.01583997,42087.0,42086.0,0.284364]
[1641894498899,0.01583997,42087.0,42086.0,0.234364]
[1641894499101,0.01583997,42087.0,42086.0,0.304364]
[1641894500501,0.01583997,42087.0,42086.0,0.284364]
[1641894501100,0.01583997,42087.0,42086.0,0.303364]
[1641894502337,0.01583997,42087.0,42086.0,0.284364]
[1641894503140,0.01583997,42087.0,42086.0,0.307364]
[1641894503839,0.01583997,42087.0,42086.0,0.547364]
[1641894504444,0.01583997,42087.0,42084.0,0.00041964]
[1641894504641,0.01583997,42087.0,42079.0,0.05347015]
[1641894504642,0.42784488,42086.0,42079.0,0.05347015]
[1641894504841,0.42784488,42086.0,42084.0,0.00041964]
[1641894505391,0.4005952,42085.0,42084.0,0.00041964]
[1641894505890,0.11416588,42086.0,42080.0,0.47099179]
[1641894506092,0.11416588,42086.0,42082.0,0.00041967]
[1641894506291,0.30865846,42083.0,42082.0,0.00041967]
[1641894506891,0.30865846,42083.0,42080.0,0.10692536]
[1641894507293,0.30865846,42083.0,42082.0,0.053]
[1641894507493,0.30865846,42083.0,42081.0,0.1]
[1641894508092,0.30865846,42083.0,42081.0,0.05]
[1641894508293,0.30865846,42083.0,42081.0,0.1]
[1641894508693,0.30865846,42083.0,42081.0,0.15346248]
[1641894508894,0.30865846,42083.0,42081.0,0.10346248]
[1641894509152,0.008,42083.0,42081.0,0.14846248]
[1641894509646,0.008,42083.0,42082.0,0.05]
[1641894510446,0.059406,42084.0,42082.0,0.05]
[1641894511242,0.059406,42084.0,42082.0,0.101]
[1641894511844,0.059406,42084.0,42083.0,0.373085]
[1641894512043,0.118812,42085.0,42083.0,0.42653347]
[1641894512247,0.059388,42086.0,42084.0,0.373085]
[1641894512442,0.059388,42086.0,42084.0,0.423085]
[1641894512643,0.059388,42086.0,42084.0,1.13781968]
[1641894513186,0.059388,42086.0,42084.0,1.20726768]
[1641894513387,0.059388,42086.0,42084.0,1.37330585]
[1641894513586,0.059388,42086.0,42085.0,0.05]
[1641894513787,0.131775,42088.0,42085.0,0.84172383]
[1641894513988,0.131775,42088.0,42085.0,0.94861978]
[1641894514587,0.131775,42088.0,42086.0,0.05344798]
[1641894514793,0.131775,42088.0,42087.0,0.78587292]
[1641894514990,0.013,42088.0,42087.0,1.16602799]
[1641894516390,0.013,42088.0,42087.0,0.473085]
[1641894517347,0.013,42088.0,42087.0,0.488085]
[1641894517745,0.013,42088.0,42087.0,0.79681205]
[1641894518547,0.013,42088.0,42087.0,0.78181205]
[1641894519346,0.013,42088.0,42087.0,0.79681205]
[1641894520485,0.013,42088.0,42087.0,0.78181205]
[1641894521287,0.013,42088.0,42087.0,0.79681205]
[1641894521887,0.013,42088.0,42087.0,0.488085]
[1641894522392,0.013,42088.0,42087.0,0.473085]
[1641894523088,0.013,42088.0,42087.0,0.79428438]
[1641894523288,0.013,42088.0,42087.0,0.82028438]
[1641894524538,0.013,42088.0,42087.0,1.29428438]
[1641894525239,0.013,42088.0,42087.0,1.32728438]
[1641894525441,0.013,42088.0,42087.0,1.006085]
[1641894526440,0.013,42088.0,42087.0,0.973085]
[1641894527238,0.013,42088.0,42087.0,0.993085]
[1641894528693,0.013,42088.0,42087.0,0.973085]
[1641894529296,0.013,42088.0,42087.0,0.990085]